bitfinex/quotes_SOLUSD_20250815
["timestamp","ask_amount","ask_price","bid_price","bid_amount"]
[1755298610648,0.66,188.05,188.02,9.06217776]
[1755298611081,5.3166375,188.09,188.02,9.06217776]
[1755298611286,0.66,188.09,188.05,3.74359464]
[1755298611459,0.66,188.09,188.03,0.68]
[1755298611460,15.10621557,188.09,188.04,3.74359464]
[1755298611794,0.66,188.08,188.04,42.52359464]
[1755298611954,0.66,188.08,188.04,43.20359464]
[1755298612150,0.66,188.08,188.05,5.31773464]
[1755298612382,5.31551224,188.13,188.05,9.06132928]
[1755298612672,4.40359464,188.1,188.05,9.06132928]
[1755298612877,0.66,188.09,188.05,9.06132928]
[1755298613077,0.66,188.09,188.05,5.31773464]
[1755298613287,0.66,188.12,188.06,0.68]
[1755298613981,0.66,188.12,188.07,3.74359464]
[1755298614158,4.40359464,188.12,188.07,5.31716913]
[1755298614476,4.40359464,188.11,188.07,5.31716913]
[1755298614776,0.66,188.1,188.07,5.31716913]
[1755298615268,3.53882861,188.13,188.07,5.31716913]
[1755298615477,4.40359464,188.12,188.07,9.06076377]
[1755298615681,3.74359464,188.12,188.07,9.74076377]
[1755298615856,0.66,188.11,188.07,9.74076377]
[1755298616176,3.74359464,188.1,188.02,0.68]
[1755298616468,0.66,188.09,188.04,42.60359464]
[1755298616684,0.66,188.09,188.04,43.28359464]
[1755298616856,4.40359464,188.11,188.05,4.42359464]
[1755298617250,4.40359464,188.11,188.06,5.31745187]
[1755298617461,3.60031583,188.13,188.06,9.74104651]
[1755298617665,4.26031583,188.13,188.07,0.68]
[1755298617973,3.74359464,188.1,188.06,5.31745187]
[1755298618150,0.66,188.1,188.06,5.99745187]
[1755298618350,0.66,188.1,188.06,9.74104651]
[1755298618779,4.40359464,188.1,188.06,5.99745187]
[1755298619151,3.74359464,188.11,188.07,0.68]
[1755298619456,0.66,188.11,188.07,5.99709048]
[1755298619876,0.66,188.11,188.07,5.31709048]
[1755298620172,4.40359464,188.1,188.04,38.86]
[1755298620375,3.74359464,188.07,188.02,0.68]
[1755298620866,0.66,188.06,188.02,0.68]
[1755298621477,4.40359464,188.06,188.02,5.99852294]
[1755298621676,3.74359464,188.03,188.0,0.03]
[1755298621851,4.20153473,188.05,188.02,0.03]
[1755298622055,3.74359464,188.03,188.02,0.03]
[1755298622250,0.66,188.04,188.02,0.03]
[1755298622463,0.66,188.03,188.02,0.03]
[1755298622663,4.40359464,188.03,188.02,0.03]
[1755298623557,3.54153473,188.04,188.02,0.03]
[1755298623874,3.74359464,188.04,188.02,0.03]
[1755298624058,3.54153473,188.06,188.02,4.45359464]
[1755298624363,3.54153473,188.07,188.03,0.68]
[1755298624557,3.54153473,188.07,188.02,3.77359464]
[1755298624558,7.94512937,188.07,188.02,0.03]
[1755298624761,7.94512937,188.06,188.02,0.03]
[1755298624980,4.40359464,188.06,188.02,0.03]
[1755298625364,0.66,188.06,188.02,0.03]
[1755298625554,7.94512937,188.06,188.02,0.03]
[1755298625751,4.40359464,188.06,188.02,0.03]
[1755298625966,7.94512937,188.06,188.02,0.03]
[1755298626172,5.31666539,188.09,188.02,0.71]
[1755298626173,3.74359464,188.07,188.02,0.71]
[1755298626367,3.54153473,188.07,188.02,0.71]
[1755298626585,3.54153473,188.09,188.02,0.71]
[1755298626767,3.54153473,188.08,188.04,3.74359464]
[1755298626971,3.54153473,188.07,188.04,4.42359464]
[1755298627271,3.54153473,188.06,188.05,0.68]
[1755298627468,3.54153473,188.09,188.06,5.31745187]
[1755298627683,3.54153473,188.08,188.06,5.31745187]
[1755298627874,0.06,188.07,188.06,5.31745187]
[1755298628064,0.06,188.07,188.06,9.74104651]
[1755298629359,0.06,188.07,188.06,5.31745187]
[1755298630185,0.06,188.07,188.06,9.06104651]
[1755298630387,3.63203809,188.07,188.06,9.06104651]
[1755298630867,3.63203809,188.07,188.06,5.99745187]
[1755298631191,3.63203809,188.07,188.06,9.74104651]
[1755298631560,3.63203809,188.07,188.06,5.31745187]
[1755298632898,0.06,188.07,188.06,9.74104651]
[1755298633600,0.06,188.07,188.06,48.58104651]
[1755298633976,0.06,188.07,188.06,44.15745187]
[1755298634175,0.06,188.07,188.06,47.90104651]
[1755298634375,0.06,188.07,188.06,44.15745187]
[1755298634691,0.06,188.07,188.06,47.90104651]
[1755298635620,0.06,188.07,188.06,44.15745187]
[1755298635998,0.06,188.07,188.06,47.90104651]
[1755298636381,0.77,188.07,188.06,5.31745187]
[1755298636585,0.77,188.07,188.04,44.11801744]
[1755298636586,4.34671746,188.07,188.04,44.11801744]
[1755298636813,0.77,188.07,188.04,44.11801744]
[1755298638016,3.74359464,188.05,188.02,79.23]
[1755298638202,7.32084171,188.04,188.02,0.03]
[1755298638397,7.32084171,188.03,188.02,0.03]
[1755298638601,8.03084171,188.03,188.02,0.03]
[1755298640201,13.34914198,188.03,188.02,0.03]
[1755298640599,54.45535755,188.03,188.02,0.03]
[1755298641194,41.10621557,188.01,188.0,0.03]
[1755298642192,32.19980085,188.0,187.99,0.03]
[1755298642410,36.66755941,188.0,187.99,0.03]
[1755298642923,75.42755941,188.0,187.99,0.03]
[1755298643104,70.95980085,188.0,187.98,0.03]
[1755298643301,70.95980085,188.0,187.9,0.03]
[1755298643302,15.10621557,187.95,187.9,0.03]
[1755298643619,3.74359464,187.91,187.9,0.03]
[1755298644196,4.45359464,187.91,187.9,0.03]
[1755298644812,9.77529119,187.91,187.9,0.03]
[1755298645198,24.88150676,187.91,187.9,0.03]
[1755298645402,28.45875383,187.91,187.9,0.03]
[1755298648602,0.71,187.96,187.9,0.69]
[1755298648811,15.10621557,187.93,187.9,0.69]
[1755298649037,15.10621557,187.93,187.91,0.66]
[1755298649322,38.7,187.97,187.92,0.66]
[1755298649619,15.10621557,187.96,187.91,3.74359464]
[1755298649919,26.0,187.94,187.93,0.66]
[1755298650122,15.10621557,187.96,187.93,0.66]
[1755298650328,18.84981021,187.96,187.93,0.66]
[1755298650822,21.45397245,187.96,187.93,0.66]
[1755298651031,21.45397245,187.96,187.92,5.32130805]
[1755298651218,21.45397245,187.96,187.92,5.98130805]
[1755298651521,21.45397245,187.96,187.9,6.37775688]
[1755298651522,6.34775688,187.94,187.9,0.03]
[1755298651724,26.0,187.94,187.9,11.69972316]
[1755298651928,26.0,187.94,187.91,0.66]
[1755298652112,32.34775688,187.94,187.9,6.01196628]
[1755298652314,26.0,187.94,187.9,6.01196628]
[1755298653903,0.71,187.98,187.93,6.34775688]
[1755298654222,6.34775688,187.94,187.9,0.03]
[1755298654520,6.34775688,187.93,187.9,0.03]
[1755298654908,6.34775688,187.92,187.9,0.03]
[1755298655098,6.34775688,187.93,187.9,0.03]
[1755298655498,47.13661391,187.96,187.9,6.01193519]
[1755298655801,6.34775688,187.93,187.9,5.35193519]
[1755298656421,6.34775688,187.93,187.91,0.03]
[1755298656623,6.34775688,187.92,187.91,0.03]
[1755298656925,6.34775688,187.93,187.91,0.03]
[1755298657622,6.34775688,187.92,187.91,0.03]
[1755298657826,7.05775688,187.92,187.91,0.03]
[1755298658006,6.34775688,187.92,187.91,0.03]
[1755298658416,7.05775688,187.92,187.91,0.03]
[1755298659025,26.0,187.92,187.91,0.03]
[1755298659221,32.34775688,187.92,187.91,0.03]
[1755298659615,33.05775688,187.92,187.91,0.03]
[1755298661947,7.05775688,187.92,187.91,0.03]
[1755298663719,0.71,187.92,187.91,0.03]
[1755298663926,27.48538581,187.92,187.91,0.03]
[1755298664636,31.03167377,187.92,187.91,0.03]
[1755298664812,29.61934481,187.92,187.91,0.03]
[1755298665839,33.16539552,187.92,187.91,0.03]
[1755298667739,26.81763864,187.92,187.91,0.03]
[1755298667936,33.16539552,187.92,187.91,0.03]
[1755298670127,52.81763864,187.92,187.91,0.03]
[1755298670318,33.16539552,187.92,187.91,0.03]
[1755298670519,26.81763864,187.92,187.91,0.03]
[1755298670837,46.98357457,187.92,187.91,0.03]
[1755298671040,18.84961557,187.92,187.91,0.03]
[1755298671540,15.10621557,187.92,187.91,0.03]
[1755298671717,18.84961557,187.92,187.91,0.03]
[1755298672222,15.10621557,187.95,187.91,0.03]
[1755298672426,3.7434,187.92,187.91,0.03]
[1755298672628,26.0,187.93,187.91,0.73]
[1755298672837,0.06,187.98,187.91,4.4734]
[1755298673051,0.06,187.98,187.97,3.7434]
[1755298673218,0.06,187.98,187.97,9.06339787]
[1755298673422,0.06,188.0,187.97,9.76339787]
[1755298673636,0.06,188.0,187.99,3.7434]
[1755298673833,0.06,188.0,187.98,0.7]
[1755298674123,0.06,188.0,187.99,0.7]
[1755298674847,0.06,188.0,187.99,7.04393696]
[1755298675213,0.06,188.04,188.0,5.31914893]
[1755298675417,0.06,188.04,188.03,6.34393696]
[1755298675845,0.06,188.04,188.03,7.04393696]
[1755298676621,0.06,188.12,188.03,7.04393696]
[1755298676822,0.06,188.12,188.06,6.34393696]
[1755298677022,0.06,188.12,188.11,6.34393696]
[1755298677222,0.06,188.12,188.11,7.04393696]
[1755298677450,6.40393696,188.12,188.07,5.31716308]
[1755298677651,0.06,188.12,188.09,0.7]
[1755298677827,0.06,188.12,188.08,6.34393696]
[1755298677828,0.06,188.12,188.1,0.7]
[1755298678517,0.06,188.12,188.08,6.34393696]
[1755298678722,0.06,188.12,188.11,0.7]
[1755298679147,0.06,188.12,188.08,0.7]
[1755298679352,0.06,188.08,188.05,5.31766056]
[1755298679845,0.06,188.12,188.06,1.23174518]
[1755298680024,0.06,188.14,188.07,0.7]
[1755298680419,0.06,188.14,188.11,6.34393696]
[1755298680637,0.06,188.14,188.12,12.35969286]
[1755298680850,6.40393696,188.14,188.12,0.7]
[1755298681029,0.06,188.14,188.13,0.7]
[1755298681429,0.06,188.14,188.1,7.04393696]
[1755298681745,0.06,188.14,188.13,7.04393696]
[1755298682551,0.06,188.14,188.09,6.01660375]
[1755298682552,6.40393696,188.14,188.09,6.01660375]
[1755298682755,6.34393696,188.13,188.09,0.7]
[1755298682932,6.34393696,188.1,188.06,0.7]
[1755298683132,6.34393696,188.08,188.04,0.7]
[1755298683442,6.34393696,188.08,188.05,0.7]
[1755298684330,6.34393696,188.07,188.02,7.04393696]
[1755298684527,6.34393696,188.07,188.03,0.7]
[1755298684728,6.34393696,188.07,188.03,6.01820802]
[1755298686233,6.34393696,188.06,188.03,0.7]
[1755298686422,0.65,188.07,188.01,6.01859516]
[1755298686624,6.34393696,188.05,188.01,6.01859516]
[1755298687244,5.31637011,188.1,188.03,5.31830027]
[1755298687554,6.34393696,188.09,188.04,7.04393696]
[1755298687854,6.34393696,188.12,188.07,6.34393696]
[1755298688032,6.34393696,188.11,188.07,0.7]
[1755298688234,6.34393696,188.09,188.04,7.04393696]
[1755298688443,6.34393696,188.09,188.04,45.06393696]
[1755298688650,6.34393696,188.09,188.05,0.7]
[1755298689044,26.65,188.11,188.05,0.7]
[1755298689239,31.96615464,188.11,188.05,0.7]
[1755298690149,31.96615464,188.11,188.05,6.01771965]
[1755298690934,31.96615464,188.11,188.05,6.04771965]
[1755298691257,5.96615464,188.11,188.05,6.04771965]
[1755298691557,6.34393696,188.1,188.05,12.39165661]
[1755298691956,6.99393696,188.1,188.05,12.39165661]
[1755298692453,6.34393696,188.09,188.05,0.73]
[1755298692651,6.99393696,188.09,188.05,0.03]
[1755298693344,6.34393696,188.08,188.05,0.03]
[1755298694065,6.99393696,188.09,188.05,5.34762676]
[1755298695336,6.99393696,188.09,188.05,0.03]
[1755298695543,0.65,188.09,188.05,0.03]
[1755298695850,6.34393696,188.09,188.05,0.75]
[1755298696171,7.06393696,188.09,188.05,0.03]
[1755298696366,0.72,188.09,188.05,0.03]
[1755298696532,7.06393696,188.09,188.05,0.75]
[1755298697063,7.06393696,188.08,188.05,0.03]
[1755298697239,0.72,188.08,188.05,0.03]
[1755298697745,6.34393696,188.07,188.05,0.03]
[1755298697940,0.72,188.08,188.05,0.03]
[1755298698152,7.06393696,188.08,188.05,0.03]
[1755298698364,0.72,188.1,188.05,0.03]
[1755298698558,6.34393696,188.08,188.05,0.03]
[1755298698946,0.72,188.09,188.05,0.03]
[1755298699165,6.34393696,188.08,188.05,0.03]
[1755298699665,0.72,188.09,188.05,0.03]
[1755298700163,6.34393696,188.08,188.05,6.0675642]
[1755298700660,7.06393696,188.09,188.05,44.7675642]
[1755298701243,0.72,188.09,188.05,44.7675642]
[1755298701451,6.34393696,188.08,188.05,44.7675642]
[1755298701652,0.72,188.09,188.05,44.7675642]
[1755298701962,7.06393696,188.08,188.06,38.7]
[1755298702535,6.34393696,188.07,188.06,38.7]
[1755298702742,3.73605171,188.07,188.06,38.7]
[1755298702968,0.72,188.08,188.06,38.7]
[1755298705046,0.72,188.1,188.06,38.7]
[1755298705374,0.72,188.09,188.06,38.7]
[1755298706547,0.72,188.08,188.06,38.7]
[1755298708142,0.72,188.07,188.05,0.03]
[1755298708347,0.72,188.07,188.06,38.64]
[1755298710144,6.03663261,188.09,188.06,38.64]
[1755298710368,0.72,188.08,188.06,38.64]
[1755298710666,15.10621557,188.09,188.06,38.64]
[1755298710864,15.82621557,188.09,188.06,38.64]
[1755298712050,15.10621557,188.09,188.06,43.9573923]
[1755298712370,15.10621557,188.09,188.06,44.6773923]
[1755298712572,15.82621557,188.09,188.06,38.64]
[1755298713980,15.82621557,188.09,188.05,5.34770465]
[1755298714169,15.82621557,188.09,188.07,38.6]
[1755298714576,3.56150909,188.08,188.07,38.6]
[1755298717375,3.56150909,188.08,188.07,38.56]
[1755298717572,7.99046273,188.08,188.07,38.56]
[1755298718265,3.56150909,188.08,188.07,38.56]
[1755298718465,7.99046273,188.08,188.07,38.56]
[1755298719170,7.99046273,188.08,188.05,6.06766907]
[1755298719379,4.42895364,188.08,188.07,38.56]
[1755298719558,8.01280401,188.08,188.07,38.56]
[1755298720580,8.01280401,188.08,188.07,38.54]
[1755298721787,8.01280401,188.08,188.05,6.06766907]
[1755298721959,3.58385037,188.07,188.06,38.52]
[1755298722456,4.30385037,188.07,188.05,0.03]
[1755298722663,8.03990208,188.06,188.05,0.03]
[1755298722866,8.03990208,188.06,188.05,38.55]
[1755298723081,3.58385037,188.06,188.05,38.55]
[1755298723468,8.03990208,188.06,188.05,38.55]
[1755298723668,8.03990208,188.06,188.05,38.53]
[1755298723973,12.46885572,188.06,188.05,38.53]
[1755298724175,27.57507129,188.06,188.05,38.53]
[1755298724364,27.57507129,188.06,188.05,0.03]
[1755298724561,23.14611765,188.06,188.05,0.03]
[1755298724976,22.42611765,188.06,188.05,0.03]
[1755298725992,23.11611765,188.06,188.05,0.03]
[1755298728264,3.58385037,188.06,188.05,0.68]
[1755298728489,29.58385037,188.06,188.05,0.68]
[1755298728694,3.58385037,188.06,188.05,4.41605171]
[1755298729691,3.58385037,188.06,188.05,0.68]
[1755298730167,3.58385037,188.06,188.05,5.99773464]
[1755298732590,7.31990208,188.06,188.05,38.43]
[1755298732890,8.00990208,188.06,188.05,38.43]
[1755298733067,34.00990208,188.06,188.05,38.43]
[1755298733470,30.27385037,188.06,188.05,38.43]
[1755298733680,29.58385037,188.06,188.05,39.08]
[1755298734193,29.58385037,188.06,188.05,38.43]
[1755298735498,34.00990208,188.06,188.05,38.43]
[1755298735701,30.27385037,188.06,188.05,38.43]
[1755298736078,34.00990208,188.06,188.05,38.43]
[1755298737700,34.00990208,188.06,188.05,0.03]
[1755298739576,30.27385037,188.06,188.05,0.03]
[1755298739776,34.00990208,188.06,188.05,0.03]
[1755298740283,26.0,188.04,188.03,0.03]
[1755298740490,3.58385037,188.04,188.03,0.68]
[1755298742513,44.69006594,188.04,188.03,0.03]
[1755298742812,15.10621557,188.03,188.02,0.03]
[1755298743106,23.11611765,188.03,188.02,0.03]
[1755298743301,27.34666798,188.03,188.02,0.03]
[1755298743908,33.32053943,188.03,188.02,0.03]
[1755298744521,32.66496825,188.03,188.02,0.03]
[1755298744813,38.6388397,188.03,188.02,0.03]
[1755298745414,77.03213667,188.03,188.02,0.03]
[1755298745624,9.55101879,188.03,188.02,0.03]
[1755298745791,9.55101879,188.03,188.02,4.41605171]
[1755298745792,3.58385037,188.03,188.02,4.41605171]
[1755298745992,3.58385037,188.03,188.02,0.68]
[1755298746211,3.58385037,188.03,188.02,4.41605171]
[1755298746387,3.57852445,188.07,188.03,18.61405094]
[1755298746587,4.53428956,188.12,188.04,39.05]
[1755298746807,3.57795648,188.11,188.05,0.65]
[1755298746988,3.57795648,188.1,188.05,0.65]
[1755298747307,3.57756162,188.09,188.05,0.65]
[1755298747523,0.06,188.12,188.06,0.53174518]
[1755298747891,0.06,188.14,188.11,3.73605171]
[1755298748232,0.06,188.14,188.13,3.73605171]
[1755298748412,0.06,188.14,188.13,9.05152505]
[1755298748587,0.06,188.14,188.13,9.70152505]
[1755298748788,0.06,188.14,188.13,0.65]
[1755298749015,3.63388913,188.14,188.11,3.73605171]
[1755298749197,0.06,188.14,188.13,4.38605171]
[1755298749385,0.06,188.14,188.13,0.65]
[1755298749587,0.06,188.14,188.13,4.38605171]
[1755298750111,0.06,188.14,188.13,0.65]
[1755298750313,0.06,188.14,188.13,4.38605171]
[1755298750498,0.06,188.14,188.13,9.70152505]
[1755298750697,0.06,188.14,188.13,12.29623436]
[1755298751912,0.06,188.14,188.13,0.65]
[1755298752111,0.06,188.14,188.12,5.31571731]
[1755298752290,0.06,188.14,188.13,38.62]
[1755298752614,3.63018259,188.14,188.1,11.64702602]
[1755298752789,3.63018259,188.14,188.11,38.66]
[1755298752989,3.57018259,188.13,188.09,11.64731036]
[1755298753198,4.26018259,188.13,188.1,38.68]
[1755298753404,6.33076102,188.12,188.1,38.68]
[1755298753600,4.26018259,188.13,188.1,38.68]
[1755298753813,6.33076102,188.12,188.1,38.68]
[1755298754312,6.33076102,188.11,188.1,38.68]
[1755298755006,9.90094361,188.13,188.1,39.33]
[1755298755202,3.63018259,188.14,188.11,0.65]
[1755298755412,0.06,188.14,188.13,6.33076102]
[1755298755620,0.06,188.14,188.13,0.69]
[1755298755802,0.06,188.14,188.13,7.02076102]
[1755298756000,0.06,188.14,188.11,6.33076102]
[1755298756201,0.06,188.14,188.12,5.3157559]
[1755298756401,0.06,188.14,188.12,6.0057559]
[1755298756622,0.06,188.14,188.12,5.3157559]
[1755298756818,0.06,188.14,188.12,6.0057559]
[1755298757333,0.06,188.14,188.12,5.3157559]
[1755298758602,0.06,188.14,188.12,0.69]
[1755298759059,0.06,188.14,188.11,5.31603848]
[1755298759334,7.05076102,188.14,188.12,38.66]
[1755298759630,6.39076102,188.14,188.12,38.66]
[1755298760034,6.33076102,188.13,188.12,38.66]
[1755298760806,12.30627602,188.13,188.1,38.64]
[1755298761005,32.33076102,188.11,188.04,0.69]
[1755298761207,6.33076102,188.09,188.05,38.66]
[1755298762136,6.33076102,188.08,188.05,38.66]
[1755298762519,6.33076102,188.07,188.04,5.31776346]
[1755298762842,6.33076102,188.06,188.05,38.66]
[1755298763211,6.33076102,188.06,188.03,5.34825653]
[1755298763212,6.99076102,188.06,188.03,0.03]
[1755298763414,6.33076102,188.05,188.03,0.03]
[1755298763912,6.33076102,188.04,188.03,0.03]
[1755298764255,6.99076102,188.05,188.03,0.03]
[1755298764562,6.33076102,188.05,188.03,0.03]
[1755298766363,4.22325754,188.07,188.03,0.03]
[1755298766563,6.33076102,188.05,188.03,0.03]
[1755298768337,6.99076102,188.05,188.03,0.03]
[1755298768635,6.33076102,188.04,188.03,0.03]
[1755298769461,6.99076102,188.05,188.03,0.03]
[1755298770241,3.56325754,188.08,188.04,7.02076102]
[1755298770440,21.43697659,188.12,188.06,6.33076102]
[1755298770643,3.56325754,188.11,188.07,6.33076102]
[1755298770844,0.72,188.14,188.09,6.33076102]
[1755298771040,0.72,188.14,188.1,7.02076102]
[1755298771245,0.06,188.14,188.11,6.33076102]
[1755298771473,26.0,188.12,188.1,0.69]
[1755298771653,0.06,188.14,188.11,6.33076102]
[1755298771844,0.06,188.14,188.1,0.69]
[1755298772044,26.0,188.12,188.1,7.02076102]
[1755298772254,0.06,188.14,188.1,7.02076102]
[1755298772461,26.0,188.12,188.08,44.93076102]
[1755298772649,26.66,188.12,188.09,38.6]
[1755298773257,26.0,188.12,188.09,38.6]
[1755298773781,26.66,188.12,188.09,38.6]
[1755298774366,32.99076102,188.12,188.09,43.91634128]
[1755298774569,26.66,188.12,188.09,43.91634128]
[1755298774882,32.99076102,188.12,188.09,43.91634128]
[1755298775053,26.0,188.12,188.09,43.91634128]
[1755298775649,0.06,188.14,188.1,0.69]
[1755298775870,0.06,188.14,188.13,6.33076102]
[1755298776176,0.06,188.14,188.13,38.56]
[1755298776353,0.06,188.14,188.13,44.56547334]
[1755298776558,0.06,188.14,188.13,12.33623436]
[1755298776878,0.06,188.14,188.13,48.27671352]
[1755298777371,0.06,188.14,188.13,44.54547334]
[1755298777545,0.06,188.14,188.13,48.27671352]
[1755298778871,0.06,188.14,188.13,44.54547334]
[1755298779452,0.06,188.14,188.13,50.87730165]
[1755298780691,0.06,188.14,188.13,6.00547334]
[1755298780858,0.06,188.14,188.13,50.81730165]
[1755298781985,0.06,188.14,188.13,130.01730165]
[1755298782283,0.06,188.16,188.13,50.81730165]
[1755298782453,0.06,188.16,188.15,11.64673662]
[1755298782653,0.06,188.16,188.15,50.10673662]
[1755298783057,0.06,188.16,188.15,43.77490831]
[1755298783790,0.06,188.16,188.15,38.46]
[1755298783990,7.05182831,188.16,188.15,38.46]
[1755298784371,0.06,188.16,188.15,44.46490831]
[1755298785091,0.06,188.16,188.15,43.77490831]
[1755298785599,0.06,188.16,188.15,44.45490831]
[1755298786477,0.06,188.16,188.15,43.77490831]
[1755298787700,0.72,188.16,188.15,43.77490831]
[1755298788195,0.06,188.16,188.15,43.77490831]
[1755298789775,0.06,188.16,188.15,50.78673662]
[1755298789987,1e-08,188.16,188.15,50.78673662]
[1755298793905,1e-08,188.16,188.15,12.32673662]
[1755298794099,1e-08,188.16,188.15,50.72673662]
[1755298795087,1e-08,188.16,188.15,44.39490831]
[1755298795288,1e-08,188.16,188.15,50.72673662]
[1755298797284,1e-08,188.16,188.15,12.32673662]
[1755298797502,1e-08,188.16,188.15,43.71490831]
[1755298797692,1e-08,188.16,188.15,50.04673662]
[1755298798005,1e-08,188.16,188.15,50.72673662]
[1755298798525,26.0,188.13,188.06,0.03]
[1755298798809,15.10621557,188.07,188.06,0.03]
[1755298799107,22.93561424,188.07,188.06,0.03]
[1755298799307,19.19779444,188.07,188.06,0.03]
[1755298799506,22.93561424,188.07,188.06,0.03]
[1755298800794,25.53976935,188.07,188.06,0.03]
[1755298801720,19.19779444,188.07,188.06,0.03]
[1755298801888,25.53976935,188.07,188.06,0.03]
[1755298802089,3.56000328,188.07,188.06,0.71]
[1755298802415,30.09157887,188.07,188.06,0.03]
[1755298802713,36.43355378,188.07,188.06,0.03]
[1755298802910,30.09157887,188.07,188.06,0.03]
[1755298803092,35.90197819,188.07,188.06,0.03]
[1755298803287,6.8735505,188.1,188.06,0.03]
[1755298803505,9.89909184,188.1,188.06,0.71]
[1755298804020,6.34197491,188.09,188.06,0.71]
[1755298804315,6.34197491,188.07,188.06,0.03]
[1755298804686,35.89909184,188.07,188.06,0.03]
[1755298805122,51.00530741,188.07,188.06,0.03]
[1755298805330,25.00530741,188.07,188.06,0.03]
[1755298805614,18.6633325,188.07,188.06,0.03]
[1755298805795,44.6633325,188.07,188.06,0.03]
[1755298805998,35.89909184,188.07,188.06,0.03]
[1755298806208,3.55711693,188.07,188.06,0.03]
[1755298806395,8.47411391,188.12,188.06,7.05197491]
[1755298806709,8.47411391,188.12,188.07,6.34197491]
[1755298806710,0.53157559,188.11,188.07,6.34197491]
[1755298806913,0.53157559,188.11,188.08,0.68]
[1755298807088,0.53157559,188.11,188.06,0.03]
[1755298807089,6.8735505,188.11,188.09,5.31660375]
[1755298807288,6.34197491,188.1,188.09,5.31660375]
[1755298807490,6.34197491,188.1,188.07,5.31716913]
[1755298807691,0.53157559,188.09,188.07,5.31716913]
[1755298807904,6.34197491,188.08,188.07,5.31716913]
[1755298808093,6.34197491,188.08,188.06,0.03]
[1755298808303,51.53554592,188.07,188.06,0.03]
[1755298809198,53.66757192,188.07,188.06,0.03]
[1755298809401,58.98474105,188.07,188.06,0.03]
[1755298809985,52.64276614,188.07,188.06,0.03]
[1755298810218,53.66757192,188.07,188.06,0.03]
[1755298810386,58.98474105,188.07,188.06,0.03]
[1755298812113,52.64276614,188.07,188.06,0.03]
[1755298812314,58.98474105,188.07,188.06,0.03]
[1755298813515,52.64276614,188.07,188.06,0.03]
[1755298813705,58.98474105,188.07,188.06,0.03]
[1755298814922,15.10621557,188.06,188.04,0.03]
[1755298815100,15.10621557,188.04,188.02,0.03]
[1755298815296,25.53554592,188.03,188.02,0.03]
[1755298815834,19.19357101,188.03,188.02,0.03]
[1755298816038,25.53554592,188.03,188.02,0.03]
[1755298816835,35.21650809,188.03,188.02,0.03]
[1755298817339,28.87453318,188.03,188.02,0.03]
[1755298817543,19.19357101,188.03,188.02,0.03]
[1755298817728,25.53554592,188.03,188.02,0.69]
[1755298817903,19.19357101,188.03,188.02,0.03]
[1755298818202,25.53554592,188.03,188.02,0.03]
[1755298820017,27.66813992,188.03,188.02,0.03]
[1755298821532,15.10621557,188.02,187.99,5.59932108]
[1755298821713,6.34197491,188.0,187.99,5.59932108]
[1755298822230,0.53157559,188.01,187.99,0.28]
[1755298822416,6.34197491,188.0,187.99,0.28]
[1755298822822,6.34197491,188.0,187.98,0.03]
[1755298823018,6.8735505,187.99,187.98,0.03]
[1755298823514,0.53157559,188.01,187.98,0.03]
[1755298823721,6.34197491,188.0,187.98,0.03]
[1755298824035,0.53157559,188.01,187.98,0.03]
[1755298824347,6.34197491,188.0,187.98,0.03]
[1755298825149,26.0,188.02,187.98,0.03]
[1755298825312,6.34197491,188.01,187.98,0.03]
[1755298825725,26.53157559,188.02,187.98,0.03]
[1755298825924,26.0,188.02,187.98,0.03]
[1755298826143,4.4434383,188.1,188.01,6.34197491]